bitfinex-derivatives/quotes_ETHF0:USTF0_20250824
["timestamp","ask_amount","ask_price","bid_price","bid_amount"]
[1756026921700,1.0911,4771.6,4771.5,1.3393]
[1756026922398,19.778,4771.9,4771.6,0.41931]
[1756026922597,20.8691,4771.9,4771.8,1.1171]
[1756026922795,21.1011,4771.9,4771.8,0.3811]
[1756026922992,0.5244,4771.5,4771.4,0.3811]
[1756026923199,0.2363,4772.7,4771.5,0.0209]
[1756026923400,0.5667,4773.1,4773.0,1.3393]
[1756026923598,0.5667,4773.5,4773.0,1.3393]
[1756026923802,0.3652,4773.1,4773.0,0.5408]
[1756026924205,0.92235228,4773.1,4773.0,0.5408]
[1756026924406,1.15865228,4773.1,4773.0,1.3393]
[1756026924597,0.2174,4773.1,4773.0,1.3393]
[1756026924803,0.9319,4773.4,4773.3,1.3393]
[1756026924999,1.64773474,4773.4,4773.3,1.3393]
[1756026925207,1.87973474,4773.4,4773.3,0.763]
[1756026926808,1.87973474,4773.4,4773.3,1.3393]
[1756026926809,0.55663474,4773.4,4773.3,1.3393]
[1756026927412,1.25223474,4773.4,4773.3,1.3393]
[1756026927909,1.3231,4773.0,4772.9,0.3811]
[1756026928707,1.3231,4773.0,4772.9,0.5339]
[1756026929109,1.87863336,4773.0,4772.9,0.5339]
[1756026929619,1.64663336,4773.0,4772.9,1.3393]
[1756026929820,1.64657392,4773.0,4772.9,1.3393]
[1756026930020,1.87857392,4773.0,4772.9,1.3393]
[1756026930315,1.87857392,4773.0,4772.4,0.7985]
[1756026930516,0.5244,4772.5,4772.4,1.53634]
[1756026930722,1.0911,4772.5,4772.4,1.53634]
[1756026931113,0.9319,4772.5,4772.4,1.75854]
[1756026931313,0.6015,4772.5,4772.4,1.75854]
[1756026931614,0.5667,4772.8,4772.7,1.75852]
[1756026931812,1.0911,4772.8,4772.7,1.75852]
[1756026932516,0.2363,4773.5,4772.8,1.04802]
[1756026932723,1.3231,4773.5,4773.4,1.3393]
[1756026932921,1.87223998,4773.5,4773.4,1.3393]
[1756026933124,1.64023998,4773.5,4773.4,1.3393]
[1756026934026,1.3231,4773.5,4773.4,1.3393]
[1756026934331,1.3231,4773.5,4773.3,0.41916]
[1756026934332,1.3231,4773.2,4772.9,0.4192]
[1756026934627,0.5244,4773.2,4772.1,0.41927]
[1756026934822,1.3231,4773.1,4773.0,0.1589]
[1756026935123,1.3231,4773.1,4773.0,0.3811]
[1756026936425,1.3231,4773.1,4773.0,0.5339]
[1756026937226,1.3106,4772.8,4772.7,0.3926]
[1756026937422,1.3106,4772.8,4772.7,0.7898]
[1756026937622,1.0836,4772.8,4772.7,1.3724]
[1756026940626,0.2273,4772.3,4772.2,0.1593]
[1756026940830,0.5225,4772.3,4772.2,0.65786]
[1756026941033,0.5225,4772.3,4772.2,0.41926]
[1756026941332,1.3106,4772.3,4772.2,0.41926]
[1756026941626,1.3106,4772.3,4772.2,0.3926]
[1756026942020,1.3106,4772.3,4772.2,0.5519]
[1756026942229,0.7544,4772.0,4771.9,0.41929]
[1756026942428,1.3106,4772.0,4771.9,0.57329]
[1756026942730,1.3106,4772.0,4771.9,0.81189]
[1756026943226,1.3106,4772.0,4771.9,0.97119]
[1756026944338,1.8619434,4772.0,4771.9,1.56819]
[1756026944632,1.6349434,4772.0,4771.9,1.79169]
[1756026946326,0.9269434,4772.0,4771.9,1.79169]
[1756026946921,0.5513434,4772.0,4771.9,1.79169]
[1756026948327,1.48881197,4773.0,4772.5,0.4061]
[1756026948539,2.79941197,4773.0,4772.9,0.4061]
[1756026948737,2.79941197,4773.0,4772.9,0.9262]
[1756026949234,1.3106,4773.0,4772.9,0.9262]
[1756026949436,1.3106,4773.0,4772.7,0.41921]
[1756026949728,0.7881,4772.7,4772.0,0.5201]
[1756026949935,1.3106,4772.6,4772.5,0.41923]
[1756026951538,1.3106,4772.6,4772.5,1.34543]
[1756026953535,1.3106,4772.6,4772.5,1.19463]
[1756026954536,1.3106,4772.6,4772.5,0.41923]
[1756026956137,1.3106,4772.6,4772.5,0.57323]
[1756026956641,1.3106,4772.6,4772.5,1.25263]
[1756026956940,1.3106,4772.6,4772.5,1.34543]
[1756026959043,1.3106,4772.6,4772.5,0.73253]
[1756026959446,1.3106,4772.6,4772.5,0.57323]
[1756026960439,1.86263164,4772.6,4772.5,0.57323]
[1756026960636,1.07453164,4772.6,4772.5,1.34543]
[1756026960842,0.69893164,4772.6,4772.5,1.34543]
[1756026961346,0.92623164,4772.6,4772.5,1.34543]
[1756026961734,0.77933164,4772.6,4772.5,1.34543]
[1756026962145,0.55203164,4772.6,4772.5,1.34543]
[1756026963146,0.55203164,4772.6,4772.5,5.34543]
[1756026963539,1.0154,4773.3,4773.2,0.82527]
[1756026963740,0.77542737,4773.3,4773.2,1.34537]
[1756026964250,1.85872737,4773.3,4773.2,1.34537]
[1756026970850,1.85872737,4773.3,4773.2,0.73247]
[1756026971153,1.351,4773.1,4773.0,0.41918]
[1756026971358,1.351,4772.5,4772.4,1.31704]
[1756026971548,0.54812737,4772.5,4772.4,1.49960025]
[1756026971747,0.8158,4773.1,4773.0,1.03419]
[1756026972045,1.9645181,4773.1,4773.0,1.31699]
[1756026972649,1.9645181,4773.1,4773.0,0.71449]
[1756026972956,1.9645181,4773.1,4773.0,0.41919]
[1756026973646,1.9645181,4773.1,4773.0,0.56889]
[1756026974143,1.9645181,4773.1,4773.0,0.41919]
[1756026975161,1.9645181,4773.1,4773.0,0.71449]
[1756026975456,1.9645181,4773.1,4773.0,1.31699]
[1756026975656,1.1487181,4773.1,4773.0,1.31699]
[1756026975955,0.6135181,4773.1,4773.0,1.49959351]
[1756026977147,1.1116,4773.9,4773.8,0.80662]
[1756026977346,1.96472761,4773.9,4773.8,1.31692]
[1756026977656,1.96472761,4773.9,4773.8,1.58517381]
[1756026978051,1.9645685,4773.9,4773.8,1.31692]
[1756026978350,1.9645685,4773.9,4773.8,1.58517249]
[1756026979058,1.9645685,4773.9,4773.8,1.58510915]
[1756026980949,1.9645685,4773.9,4773.8,1.76996673]
[1756026981149,1.9645685,4773.9,4773.8,1.58510915]
[1756026982151,1.351,4774.9,4774.8,1.09163]
[1756026982364,1.351,4774.9,4774.8,1.58501915]
[1756026985161,1.351,4774.9,4774.8,0.98251915]
[1756026985356,1.351,4774.9,4774.8,0.68721915]
[1756026986560,1.351,4774.9,4774.8,1.21001915]
[1756026986760,1.351,4774.9,4774.8,1.49281915]
[1756026987553,1.351,4774.9,4774.8,0.83691915]
[1756026987762,1.351,4774.9,4774.8,1.58501915]
[1756026988152,1.351,4774.9,4774.8,1.58439933]
[1756026988852,1.351,4774.9,4774.8,1.43459933]
[1756026989055,1.351,4774.9,4774.8,0.83629933]
[1756026990253,1.351,4774.9,4774.8,0.68659933]
[1756026991258,1.351,4774.9,4774.8,0.26756933]
[1756026992252,0.41904,4774.8,4774.5,0.41906]
[1756026992452,1.351,4774.1,4774.0,0.4191]
[1756026993755,1.351,4774.1,4774.0,1.7312]
[1756026995164,40.8,4775.1,4774.4,1.73117]
[1756026995165,1.351,4774.5,4774.4,1.73117]
[1756026995461,1.9569384,4774.5,4774.4,1.73117]
[1756027001662,1.9569384,4774.5,4774.4,0.41907]
[1756027004056,1.344,4773.5,4773.4,0.3845]
[1756027004256,1.344,4773.5,4773.4,1.94766975]
[1756027004553,1.344,4773.5,4773.4,2.21830321]
[1756027004953,1.344,4773.5,4773.4,2.03349346]
[1756027005359,1.344,4773.5,4773.4,2.2184635]
[1756027006363,0.9981,4773.5,4773.4,2.2184635]
[1756027006556,1.344,4773.8,4773.7,1.76283]
[1756027006757,1.344,4773.8,4773.7,2.03346346]
[1756027006958,1.95151294,4773.8,4773.7,2.03346346]
[1756027008064,1.95151294,4773.8,4773.7,1.76283]
[1756027008261,1.95151294,4773.8,4773.7,2.03368511]
[1756027008569,1.95151294,4773.8,4773.7,0.68998511]
[1756027008766,1.95151294,4773.8,4773.7,0.69000075]
[1756027009354,1.95151294,4773.8,4773.7,1.80500075]
[1756027009559,1.95151294,4773.8,4773.7,2.03370075]
[1756027012166,1.95151294,4773.8,4773.7,0.69000075]
[1756027013967,1.95151294,4773.8,4773.7,0.27087075]
[1756027018168,1.95151294,4773.8,4773.6,0.41913]
[1756027018369,1.344,4773.8,4773.7,0.27082965]
[1756027018568,1.95146044,4773.8,4773.7,0.27082965]
[1756027018768,1.12966044,4773.8,4773.7,0.27084315]
[1756027019468,1.95146044,4773.8,4773.7,0.27084315]
[1756027020166,1.95146044,4773.8,4773.7,0.42664315]
[1756027020571,1.95146044,4773.8,4773.7,1.61454315]
[1756027020770,0.6221,4774.2,4774.1,0.5405]
[1756027020974,0.99353011,4774.2,4774.1,2.03367424]
[1756027021563,0.84733011,4774.2,4774.1,2.03367424]
[1756027021973,1.60573011,4774.2,4774.1,2.03367424]
[1756027022972,0.99003011,4774.2,4774.1,2.03367424]
[1756027023270,0.60763011,4774.2,4774.1,2.03367424]
[1756027023771,0.60763011,4774.2,4774.1,2.20982361]
[1756027024168,0.60763011,4774.2,4774.1,6.20982361]
[1756027024470,1.1978,4775.4,4775.3,0.3847]
[1756027024674,1.95092808,4775.4,4775.3,1.56767424]
[1756027024974,1.95092808,4775.4,4775.3,2.03357424]
[1756027026981,1.95092808,4775.4,4775.3,1.76269]
[1756027027170,1.95092808,4775.4,4775.3,2.03446223]
[1756027027574,1.95092808,4775.4,4775.3,2.03440057]
[1756027028377,1.12912808,4775.4,4775.3,2.03440057]
[1756027029077,1.94602808,4775.4,4775.3,2.03440057]
[1756027031278,1.94602808,4775.4,4775.3,0.69047377]
[1756027031877,1.94602808,4775.4,4775.3,0.27148377]
[1756027034981,1.36602808,4775.4,4775.2,0.419]
[1756027035187,1.95282808,4775.3,4775.2,0.419]
[1756027035485,1.95282808,4775.3,4775.2,0.69032025]
[1756027036983,1.95282808,4775.3,4775.2,0.419]
[1756027037288,1.95282808,4775.3,4775.2,1.7368]
[1756027039286,1.95282808,4775.3,4775.2,0.419]
[1756027039585,1.95282808,4775.3,4775.2,0.565]
[1756027039788,1.95282808,4775.3,4775.2,0.419]
[1756027040086,1.95282808,4775.3,4775.2,0.69025866]
[1756027041186,1.95258491,4775.3,4775.2,0.69025866]
[1756027042389,1.95258491,4775.3,4775.2,0.83625866]
[1756027042589,1.95258491,4775.3,4775.2,1.40655866]
[1756027042981,1.60368491,4775.3,4775.2,2.00805866]
[1756027043281,1.95258491,4775.3,4775.2,2.00805866]
[1756027044180,1.95258491,4775.3,4775.2,1.56225866]
[1756027044580,1.95258491,4775.3,4775.2,1.291]
[1756027044988,1.95258491,4775.3,4775.2,0.961]
[1756027045383,1.95258491,4775.3,4775.2,1.7368]
[1756027047390,1.95258491,4775.3,4775.2,2.01771029]
[1756027047784,1.60368491,4775.3,4775.2,1.7368]
[1756027048091,1.95258491,4775.3,4775.2,2.01770409]
[1756027053193,1.60368491,4775.3,4775.2,2.01770409]
[1756027053993,1.60368491,4775.3,4775.2,1.99948381]
[1756027054587,1.95258491,4775.3,4775.2,1.99948381]
[1756027056594,1.95258491,4775.3,4775.2,1.06798381]
[1756027056793,1.95258491,4775.3,4775.2,1.42428381]
[1756027056996,1.95258491,4775.3,4775.2,2.02658381]
[1756027057191,1.95258491,4775.3,4775.2,1.7639]
[1756027057494,1.95258491,4775.3,4775.2,1.57902539]
[1756027057698,1.95258491,4775.3,4775.2,0.419]
[1756027057902,1.95258491,4775.3,4775.2,0.26273018]
[1756027058094,1.95258491,4775.3,4775.2,0.26274571]
[1756027063905,1.95258491,4775.3,4775.2,0.27224436]
[1756027066508,1.95258491,4775.3,4775.2,1.61084436]
[1756027067098,21.30958491,4775.3,4775.2,1.3386]
[1756027067303,1.95258491,4775.3,4775.2,1.61085002]
[1756027067600,21.30958491,4775.3,4775.2,1.61085002]
[1756027067909,20.96068491,4775.3,4775.2,1.61085002]
[1756027068201,20.49268491,4775.3,4775.2,1.61083387]
[1756027068406,19.96368491,4775.3,4775.2,1.61083387]
[1756027069304,0.60668491,4775.3,4775.2,1.61083387]
[1756027070504,0.60668491,4775.3,4775.2,1.3386]
[1756027070711,0.60668491,4775.3,4775.2,1.61081437]
[1756027072109,1.36618491,4775.3,4775.2,1.61081437]
[1756027072303,1.71478491,4775.3,4775.2,1.61081437]
[1756027072711,1.36618491,4775.3,4775.2,1.61081437]
[1756027074613,0.91158491,4775.3,4775.2,1.61081437]
[1756027075011,1.71478491,4775.3,4775.2,1.61081437]
[1756027075313,0.60668491,4775.3,4775.2,1.61081437]
[1756027075717,0.75188491,4775.3,4775.2,1.61081437]
[1756027075913,1.55508491,4775.3,4775.2,1.61081437]
[1756027076102,1.95438491,4775.3,4775.2,1.61081437]
[1756027077105,1.95438491,4775.3,4775.2,1.3386]
[1756027077306,1.95438491,4775.3,4775.2,1.61079924]
[1756027077918,1.95438491,4775.3,4775.2,1.3386]
[1756027078114,1.95438491,4775.3,4775.2,1.6108059]
[1756027078412,1.95438491,4775.3,4775.2,0.2722059]
[1756027082612,1.95438491,4775.3,4775.1,0.419]
[1756027082818,0.5445,4775.3,4775.2,0.2639941]
[1756027083017,1.3477,4775.3,4775.2,0.2639941]
[1756027083315,1.98503446,4775.3,4775.2,0.2639941]
[1756027085809,1.60082446,4775.3,4774.7,0.41904]
[1756027086011,1.3477,4774.4,4774.3,0.41908]
[1756027086208,1.98503446,4774.4,4774.3,0.26397736]
[1756027086618,1.18183446,4774.4,4774.2,0.41908]
[1756027086819,1.96383446,4774.3,4774.2,1.15688]
[1756027087322,1.96383446,4774.3,4774.2,1.52388]
[1756027088019,1.96383446,4774.3,4774.2,1.75658]
[1756027091515,0.63733446,4774.3,4774.2,1.75658]
[1756027091710,0.63733446,4774.3,4774.2,1.94136052]
[1756027093019,0.86073446,4774.3,4774.2,1.94136052]
[1756027093918,1.23523446,4774.3,4774.2,1.94136052]
[1756027094720,1.23523446,4774.3,4774.2,1.75658]
[1756027095123,1.38693446,4774.3,4774.2,1.75658]
[1756027095323,0.63733446,4774.3,4774.2,1.75658]
[1756027095522,1.74563446,4774.3,4774.2,1.75658]
[1756027095923,1.96383446,4774.3,4774.2,1.75658]
[1756027096118,1.96383446,4774.3,4773.7,1.04783]
[1756027096119,0.41911,4774.0,4772.5,1.04808]
[1756027096416,1.3265,4773.3,4773.2,1.30327]
[1756027096621,0.3036,4772.9,4772.8,0.6399]
[1756027096820,1.96215268,4772.9,4772.8,0.4192]
[1756027097323,1.96215268,4772.9,4772.8,0.7967]
[1756027097519,1.96215268,4772.9,4772.8,1.3777]
[1756027097723,1.96215268,4772.9,4772.8,1.7567]
[1756027099423,1.3265,4772.9,4772.8,1.7567]
[1756027099925,1.3265,4772.9,4771.6,1.04828]
[1756027099926,0.8047,4772.8,4772.7,0.41921]
[1756027100129,1.96106592,4772.8,4772.7,0.41921]
[1756027100514,1.96082757,4772.8,4772.7,0.41921]
[1756027100714,1.96082757,4772.8,4772.7,0.56511]
[1756027101518,1.3265,4772.8,4772.7,0.56511]
[1756027101725,1.3265,4772.8,4772.7,0.79671]
[1756027102026,1.3265,4772.8,4772.7,1.15701]
[1756027102420,1.3265,4772.8,4772.7,1.30331]
[1756027102626,1.3265,4772.8,4772.7,1.75671]
[1756027106330,1.3265,4772.8,4772.7,0.79671]
[1756027106528,0.5218,4772.4,4772.3,0.41925]
[1756027106736,1.3265,4772.4,4772.3,0.41925]
[1756027107829,1.3265,4772.4,4772.3,0.92545]
[1756027109229,1.3265,4772.4,4772.3,1.30335]
[1756027109529,1.3265,4772.4,4772.3,1.75675]
[1756027109927,0.733,4772.6,4772.5,1.75674]
[1756027110127,1.0077158,4772.6,4772.5,1.75674]
[1756027110325,1.6012158,4772.6,4772.5,1.75674]
[1756027110527,0.1517,4772.8,4772.7,0.94302]
[1756027110726,0.78511354,4772.8,4772.7,1.75672]
[1756027111030,1.95991354,4772.8,4772.7,1.75672]
[1756027112626,1.96670334,4772.8,4772.7,1.75672]
[1756027113324,1.96670334,4772.8,4772.7,0.41922]
[1756027113630,1.3265,4772.2,4772.1,1.75677]
[1756027114226,2.00388058,4772.2,4772.1,1.30337]
[1756027115327,2.00388058,4772.2,4772.1,1.75677]
[1756027120033,2.0041949,4772.2,4772.1,1.75677]
[1756027120230,2.0041949,4772.2,4772.1,0.7378]
[1756027120430,1.1994949,4772.2,4771.7,0.4193]
[1756027120635,1.3421,4772.0,4771.9,0.7201]
[1756027120934,2.0197949,4772.0,4771.9,0.9392]
[1756027121130,2.0197949,4772.0,4771.9,1.3045]
[1756027121930,1.1970949,4772.0,4771.6,0.76291]
[1756027122239,1.3421,4771.8,4771.7,1.7238]
[1756027122434,2.0197949,4771.8,4771.7,1.7238]
[1756027125438,2.0197949,4771.8,4771.5,0.41932]
[1756027125736,1.3421,4771.6,4771.5,0.41932]
[1756027125937,2.0197949,4771.6,4771.5,0.41932]
[1756027126138,1.1123,4771.5,4771.4,0.3436]
[1756027126339,1.1970949,4771.5,4770.8,1.04845]
[1756027126526,0.5194,4771.3,4771.2,1.3045]
[1756027126732,2.0197949,4771.3,4771.2,1.91365564]
[1756027127142,2.0197949,4771.3,4771.2,0.865]
[1756027127638,2.0197949,4771.3,4771.0,0.41936]
[1756027127841,2.0197949,4771.2,4771.1,0.41936]
[1756027128142,2.0197949,4771.2,4771.1,1.13946]
[1756027128331,2.0197949,4771.2,4771.1,1.57896]
[1756027128531,2.0197949,4771.2,4771.1,1.72386]
[1756027134740,2.02030546,4771.2,4771.1,1.72386]
[1756027137948,0.67820546,4771.2,4771.1,1.72386]
[1756027138147,0.67820546,4771.2,4771.1,5.93781731]
[1756027138352,1.1123,4772.3,4772.2,0.94066]
[1756027138642,1.1123,4772.3,4772.2,1.48386]
[1756027138946,1.3421,4772.3,4772.2,1.68046]
[1756027139547,1.3421,4772.3,4772.2,1.48386]
[1756027140149,1.3421,4772.3,4772.2,1.68046]
[1756027140443,0.2298,4772.6,4772.5,1.68044]
[1756027141047,0.3755,4772.6,4772.5,1.68044]
[1756027141250,1.3421,4772.6,4772.5,1.0646]
[1756027142545,1.3421,4772.5,4772.4,1.48384]
[1756027147954,1.3421,4772.5,4772.4,1.0646]
[1756027148154,0.5419,4772.3,4772.2,0.41926]
[1756027148455,1.3318,4771.9,4771.8,0.5153]
[1756027148654,1.3318,4771.9,4771.8,0.3698]
[1756027148846,1.3318,4771.9,4771.8,0.6956]
[1756027149048,1.3318,4771.9,4771.8,1.071]
[1756027149452,1.3318,4771.9,4771.8,0.3698]
[1756027149649,0.7899,4771.8,4771.5,0.5509]
[1756027149857,1.3318,4771.6,4771.5,1.49032]
[1756027150155,1.3318,4771.6,4771.5,1.68341954]
[1756027150454,2.0163639,4771.6,4771.5,1.68341954]
[1756027151454,2.0163639,4771.6,4771.5,1.68343659]
[1756027151851,2.0163639,4771.6,4771.5,1.12773659]
[1756027152354,2.0163639,4771.6,4771.5,1.45353659]
[1756027152556,1.0560639,4771.6,4771.5,1.88113659]
[1756027153357,1.6282639,4771.6,4771.5,1.88113659]
[1756027154354,1.0560639,4771.6,4771.5,1.88113659]
[1756027154549,0.9022639,4771.6,4771.5,1.88113659]
[1756027154753,0.9022639,4771.6,4771.5,1.68802]
[1756027154954,0.9022639,4771.6,4771.5,1.88113681]
[1756027155350,1.0560639,4771.6,4771.5,1.88113681]
[1756027155562,1.0560639,4771.6,4771.5,1.88113785]
[1756027156060,0.9022639,4771.6,4771.5,1.88113785]
[1756027157657,1.8622639,4771.6,4771.5,1.88113785]
[1756027158764,0.6845639,4771.6,4771.5,1.88113785]
[1756027159959,0.9022639,4771.6,4771.5,1.88113785]
[1756027161566,0.3587639,4771.6,4771.5,1.88113785]
[1756027161761,1.1141,4772.6,4772.5,0.93454]
[1756027162363,1.3318,4772.6,4772.5,0.93454]
[1756027164761,1.3318,4772.6,4772.5,0.41924]
[1756027165064,0.5419,4772.3,4771.9,0.2251]
[1756027165265,1.3318,4772.2,4772.1,0.93457]
[1756027165464,1.3318,4772.2,4772.1,1.12779734]
[1756027166065,1.3318,4772.2,4772.1,0.61249734]
[1756027166268,1.3318,4772.2,4772.1,1.12779734]
[1756027168056,1.3318,4772.2,4772.1,1.12791097]
[1756027168259,0.1538,4772.7,4772.6,0.2251]
[1756027168461,1.1141,4772.7,4772.6,0.93453]
[1756027168858,1.3318,4772.7,4772.6,1.13223]
[1756027169868,1.3318,4772.7,4772.6,1.32555042]
[1756027170473,0.3715,4773.1,4773.0,1.13169]
[1756027170774,1.3318,4773.1,4773.0,1.13169]
[1756027170966,1.3318,4773.1,4773.0,0.93449]
[1756027173676,0.88955952,4773.1,4773.0,1.13169]
[1756027173973,0.88955952,4773.1,4773.0,1.32486403]
[1756027174376,0.67185952,4773.1,4773.0,5.32486403]
[1756027174576,0.2177,4773.8,4773.7,1.13163]
[1756027175073,0.743,4774.2,4774.1,0.5153]
[1756027175271,0.743,4774.2,4774.1,1.13159]
[1756027175664,1.3318,4774.2,4774.1,1.13159]
[1756027175870,1.3318,4774.2,4774.1,0.93439]
[1756027176070,1.3318,4774.2,4774.1,1.13159]
[1756027176673,1.3318,4774.2,4774.1,0.93439]
[1756027183183,1.3318,4774.2,4774.1,1.13139]
[1756027183377,1.3318,4774.2,4774.1,0.93439]
[1756027183975,1.3318,4774.2,4774.1,1.13139]
[1756027184776,1.3318,4774.2,4774.1,0.93439]
[1756027185576,1.3318,4774.2,4774.1,1.13139]
[1756027186377,1.3318,4774.2,4774.1,0.93439]
[1756027186672,2.00793377,4774.2,4774.1,0.93439]
[1756027188083,2.00793377,4774.2,4774.1,0.78889]
[1756027188383,2.00793377,4774.2,4774.1,0.56379]
[1756027189584,2.00793377,4774.2,4774.1,0.41909]
[1756027190679,2.00793377,4774.2,4774.1,0.93189]
[1756027191284,2.00793377,4774.2,4774.1,1.12889]
[1756027191485,2.02940957,4774.2,4774.1,1.12889]
[1756027192387,2.02940957,4774.2,4774.1,0.93189]
[1756027192778,2.02940957,4774.2,4774.1,0.78239]
[1756027193886,2.02940957,4774.2,4774.1,0.41909]
[1756027195388,2.02940957,4774.2,4774.1,0.63579]
[1756027197090,2.02940957,4774.2,4774.1,0.41909]
[1756027198091,2.02940957,4774.2,4774.1,0.78239]
[1756027198991,2.02940957,4774.2,4774.1,0.93189]
[1756027200483,2.02940957,4774.2,4774.1,0.78239]
[1756027202893,2.02940957,4774.2,4774.1,0.41909]
[1756027208494,1.1486,4773.5,4773.1,0.2399]
[1756027208699,0.5336,4773.5,4773.4,0.41916]
[1756027208899,2.76969354,4773.5,4773.4,0.41916]
[1756027209298,2.09576404,4773.5,4773.4,0.41916]
[1756027212800,2.09576404,4773.5,4773.4,0.65906]
[1756027212996,2.09576404,4773.5,4773.4,0.95976]
[1756027213201,1.85546404,4773.5,4773.4,1.15636]
[1756027213406,1.34336404,4773.5,4773.4,1.15636]
[1756027213607,1.94216404,4773.5,4773.4,1.15636]
[1756027213905,2.09576404,4773.5,4773.4,1.15636]
[1756027214301,0.96336404,4773.5,4773.4,1.15636]
[1756027214503,1.32186404,4773.5,4773.4,1.15636]
[1756027215405,0.96336404,4773.5,4773.4,1.15636]
[1756027215600,0.72676404,4773.5,4773.4,1.15636]
[1756027216511,0.96336404,4773.5,4773.4,1.15636]
[1756027217005,2.09576404,4773.5,4773.4,0.41916]
[1756027222427,2.09576404,4773.5,4772.8,1.04801]
[1756027222606,0.5336,4772.9,4772.8,0.41921]
[1756027222803,0.8921,4772.9,4772.8,0.41921]
[1756027223004,2.09576404,4772.9,4772.8,0.41921]
[1756027225411,2.09576404,4772.9,4772.8,1.52811]
[1756027225808,0.96336404,4772.9,4772.8,1.72561]
[1756027226115,0.53626404,4772.9,4772.8,1.72561]
[1756027226506,0.53626404,4772.9,4772.8,1.89862825]
[1756027227210,4.04e-06,4772.9,4772.8,1.89862825]
[1756027228314,0.77390404,4772.9,4772.8,1.89862825]
[1756027228512,1.36900404,4772.9,4772.8,1.89862825]
[1756027228912,1.13240404,4772.9,4772.8,1.89862825]
[1756027229112,0.22040404,4772.9,4772.8,1.89862825]
[1756027229312,4.04e-06,4772.9,4772.8,1.12712825]
[1756027230608,1.36900404,4772.9,4772.8,1.12712825]
[1756027231207,1.36900404,4772.9,4772.8,1.92522825]
[1756027231812,1.36900404,4772.9,4772.8,0.59222825]
[1756027233813,1.36900404,4772.9,4772.8,0.74592825]
[1756027234114,1.36900404,4772.9,4772.8,0.95981]
[1756027234414,1.36900404,4772.9,4772.8,1.69116154]
[1756027235106,1.36900404,4772.9,4772.8,1.51801]
[1756027236309,1.36900404,4772.9,4772.8,0.57291]
[1756027237000,1.36900404,4772.9,4772.8,1.14961]
[1756027237710,1.36900404,4772.9,4772.8,0.41921]
[1756027240316,2.07933068,4772.9,4772.8,0.41921]
[1756027242817,2.07933068,4772.9,4772.8,1.41091]
[1756027243012,2.07933068,4772.9,4772.8,1.75621]
[1756027243821,2.07933068,4772.9,4772.8,0.41921]
[1756027249920,1.3337,4772.1,4772.0,0.1514]
[1756027250126,2.04403068,4772.1,4772.0,0.41928]
[1756027251614,2.04403068,4772.1,4772.0,1.70181544]
[1756027251820,2.04403068,4772.1,4772.0,1.93321544]
[1756027253521,0.71033068,4772.1,4772.0,1.93321544]
[1756027253715,0.2167,4772.5,4772.3,0.95845]
[1756027254025,0.72492249,4772.4,4772.3,1.75625]
[1756027254324,0.72492249,4772.4,4772.3,1.93309574]
[1756027254927,1.30482249,4772.4,4772.3,1.93309574]
[1756027255127,1.90622249,4772.4,4772.3,1.93309574]
[1756027255522,1.10962249,4772.4,4772.3,1.93309574]
[1756027255918,2.05862249,4772.4,4772.3,1.93309574]
[1756027258324,0.72492249,4772.4,4772.3,1.93309574]
[1756027261130,1.3337,4773.1,4773.0,1.53509]
[1756027261332,0.71469438,4773.1,4773.0,1.93303574]
[1756027262825,0.71469438,4773.1,4773.0,1.75619]
[1756027263024,0.71469438,4773.1,4773.0,1.93303662]
[1756027266138,1.3337,4773.7,4773.6,0.95834]
[1756027266440,2.03863399,4773.7,4773.6,1.93298662]
[1756027267532,2.03863399,4773.7,4773.6,1.93280229]
[1756027268637,0.70493399,4773.7,4773.6,1.93280229]
[1756027268840,0.3746,4774.3,4774.2,0.95449]
[1756027269044,2.03583522,4774.3,4774.2,1.92225229]
[1756027269644,1.3442,4774.3,4774.2,1.92225229]
[1756027270336,0.5454,4775.2,4775.1,0.419]
[1756027271041,2.03131294,4775.2,4775.1,0.419]
[1756027275848,2.03131294,4775.2,4775.1,1.7455]
[1756027276146,1.3442,4775.2,4775.1,1.7455]
[1756027278045,0.2398,4775.2,4775.1,1.7455]
[1756027278749,1.3442,4775.5,4775.4,0.95438]
[1756027278948,1.3442,4775.5,4775.4,1.74548]
[1756027283756,0.5454,4775.7,4775.6,0.95436]
[1756027283957,0.5454,4775.7,4775.6,1.74546]
[1756027284355,1.3442,4775.7,4775.6,1.74546]
[1756027286252,1.3442,4775.7,4775.6,0.41896]
[1756027286458,1.3442,4775.7,4775.6,1.74546]
[1756027287954,1.3442,4775.7,4775.6,0.41896]
[1756027288159,1.3442,4775.7,4775.6,0.56726]
[1756027288356,1.3442,4775.7,4775.6,1.11786]
[1756027288561,1.3442,4775.7,4775.6,1.35836]
[1756027289149,1.3442,4775.7,4775.6,0.56726]
[1756027290161,1.3442,4775.7,4775.6,0.41896]
[1756027291359,2.03033282,4775.7,4775.6,0.41896]
[1756027291558,1.3442,4775.7,4775.6,0.41896]
[1756027292254,2.02356552,4775.7,4775.6,0.41896]
[1756027293456,0.67936552,4775.7,4775.6,1.74546]
[1756027293755,1.1947,4776.0,4775.9,1.74544]
[1756027294059,2.02389274,4776.0,4775.9,1.74544]
[1756027294262,2.02389274,4776.0,4775.9,1.92415014]
[1756027295167,2.02389274,4776.0,4775.9,1.92413828]
[1756027296362,2.02111586,4776.0,4775.9,1.92413828]
[1756027296566,0.67691586,4776.0,4775.9,1.92413828]
[1756027297959,0.12727586,4776.0,4775.9,1.92413828]
[1756027298163,0.7471,4776.8,4776.7,1.51357]
[1756027298462,0.7471,4776.8,4776.7,1.73657]
[1756027298652,1.3213,4776.8,4776.7,1.73657]
[1756027300456,1.3213,4776.8,4776.7,1.91550706]
[1756027302758,1.3213,4776.8,4776.7,0.74930706]
[1756027302962,1.3213,4776.8,4776.7,0.59780918]
[1756027303264,1.3213,4776.8,4776.7,0.17893918]
[1756027303463,0.5195,4776.8,4776.6,0.41887]
[1756027303670,1.3213,4776.7,4776.6,0.41887]
[1756027305269,0.5195,4776.0,4775.7,0.3518]
[1756027305457,1.3213,4775.9,4775.8,1.14035]
[1756027305663,1.3213,4775.9,4775.8,1.73665]
[1756027306468,0.4517,4775.9,4775.8,1.73665]